fUSD/lending_fUSD_20240301
["ID","MTS","AMOUNT","RATE_DAILY","PERIOD"]
[316006397,1709323858934,-556.99,0.00022136,2]
[316006398,1709323858948,-500.0,0.00022136,2]
[316006399,1709323858963,-500.0,0.00022136,2]
[316006400,1709323858978,-500.0,0.00022136,2]
[316006401,1709323858994,-628.25,0.00022136,2]
[316006402,1709323859009,-500.0,0.00022136,2]
[316006403,1709323859024,-500.0,0.00022136,2]
[316006404,1709323859039,-500.0,0.00022136,2]
[316006405,1709323859055,-500.0,0.00022136,2]
[316006406,1709323859070,-890.19,0.00022136,2]
[316006407,1709323859085,-4053.77,0.00022136,2]
[316006408,1709323859101,-624.47,0.00022136,2]
[316006409,1709323859117,-715.9,0.00022136,2]
[316006410,1709323859133,-820.3,0.00022136,2]
[316006411,1709323859148,-766.04,0.00022136,2]
[316006412,1709323859163,-2754.16,0.00022136,2]
[316006413,1709323859178,-604.43,0.00022136,2]
[316006414,1709323859193,-500.0,0.00022136,2]
[316006415,1709323859207,-2812.76,0.00022136,2]
[316006416,1709323859221,-1363.48,0.00022136,2]
[316006417,1709323859237,-152.07630203,0.00022136,2]
[316006418,1709323859253,-1022.61,0.00022136,2]
[316006419,1709323859266,-500.0,0.00022136,2]
[316006420,1709323859282,-2010.22,0.00022136,2]
[316006421,1709323859296,-500.0,0.00022136,2]
[316006422,1709323859311,-556.90241634,0.00022136,2]
[316006423,1709323859325,-670.14,0.00022136,2]
[316006424,1709323859340,-1149.0,0.00022136,2]
[316006425,1709323859355,-500.0,0.00022136,2]
[316006426,1709323859369,-195.28213,0.00022136,7]
[316006427,1709323859385,-195.28213,0.00022136,7]
[316006428,1709323859400,-1294.41,0.00022136,2]
[316006429,1709323859607,-500.0,0.00022136,2]
[316006430,1709323859621,-195.28213,0.00022136,7]
[316006431,1709323859633,-500.0,0.00022136,2]
[316006432,1709323859643,-195.28213,0.00022136,7]
[316006433,1709323859652,-576.51,0.00022136,2]
[316006434,1709323859661,-1039.93,0.00022136,2]
[316006435,1709323859670,-500.0,0.00022136,2]
[316006436,1709323859679,-552.75,0.00022136,2]
[316006437,1709323859689,-2594.33,0.00022136,2]
[316006438,1709323859698,-783.02,0.00022136,2]
[316006439,1709323859708,-2678.0,0.00022136,2]
[316006440,1709323859719,-538.28466139,0.00022136,2]
[316006441,1709323859729,-500.0,0.00022136,2]
[316006442,1709323859738,-500.0,0.00022136,2]
[316006443,1709323859747,-500.0,0.00022136,2]
[316006444,1709323859756,-1463.8,0.00022136,2]
[316006445,1709323859765,-521.66480064,0.00022136,2]
[316006446,1709323859775,-562.42,0.00022136,2]
[316006447,1709323859784,-2022.06,0.00022136,2]
[316006448,1709323859793,-1183.11,0.00022136,2]
[316006449,1709323859802,-407.81654474,0.00022136,2]
[316006450,1709323859811,-1493.68,0.00022136,2]
[316006451,1709323859820,-573.83559782,0.00022136,2]
[316006452,1709323859829,-1027.3,0.00022136,2]
[316006453,1709323859839,-500.0,0.00022136,2]
[316006454,1709323859848,-500.0,0.00022136,2]
[316006455,1709323859857,-500.0,0.00022136,2]
[316006456,1709323859866,-773.9,0.00022136,2]
[316006457,1709323859875,-4687.31,0.00022136,2]
[316006458,1709323859885,-249.49846,0.00022136,7]
[316006459,1709323859894,-1364.59,0.00022136,2]
[316006460,1709323859904,-503.78370497,0.00022136,2]
[316006461,1709323859914,-1579.17,0.00022136,2]
[316006462,1709323859923,-500.0,0.00022136,2]
[316006463,1709323859933,-554.2499309,0.00022136,2]
[316006464,1709323859942,-816.82,0.00022136,2]
[316006465,1709323859951,-500.0,0.00022136,2]
[316006466,1709323859960,-500.0,0.00022136,2]
[316006467,1709323859969,-523.15006369,0.00022136,2]
[316006468,1709323859978,-500.0,0.00022136,2]
[316006469,1709323859987,-1098.21,0.00022136,2]
[316006470,1709323859997,-11191.25,0.00022136,2]
[316006471,1709323860006,-500.0,0.00022136,2]
[316006472,1709323860015,-500.0,0.00022136,2]
[316006473,1709323860024,-1330.17,0.00022136,2]
[316006474,1709323860033,-1009.32,0.00022136,2]
[316006475,1709323860042,-500.0,0.00022136,2]
[316006476,1709323860052,-1884.22,0.00022136,2]
[316006477,1709323860062,-500.0,0.00022136,2]
[316006478,1709323860071,-3725.77,0.00022136,2]
[316006479,1709323860081,-791.62,0.00022136,2]
[316006480,1709323860090,-527.36613079,0.00022136,2]
[316006481,1709323860099,-500.0,0.00022136,2]
[316006482,1709323860109,-965.26,0.00022136,2]
[316006483,1709323860118,-500.0,0.00022136,2]
[316006484,1709323860128,-500.0,0.00022136,2]
[316006485,1709323860137,-500.0,0.00022136,2]
[316006486,1709323860147,-500.0,0.00022136,2]
[316006487,1709323860156,-500.0,0.00022136,2]
[316006488,1709323860166,-500.0,0.00022136,2]
[316006489,1709323860175,-605.77,0.00022136,2]
[316006490,1709323860185,-2931.93,0.00022136,2]
[316006491,1709323860194,-646.09,0.00022136,2]
[316006492,1709323860204,-500.0,0.00022136,2]
[316006493,1709323860214,-500.0,0.00022136,2]
[316006494,1709323860223,-500.0,0.00022136,2]
[316006495,1709323860233,-609.37684335,0.00022136,2]
[316006496,1709323860243,-500.0,0.00022136,2]
[316006497,1709323860253,-6411.54,0.00022136,2]
[316006498,1709323860263,-500.0,0.00022136,2]
[316006499,1709323860273,-500.0,0.00022136,2]
[316006500,1709323860283,-1805.15,0.00022136,2]
[316006501,1709323860293,-587.03,0.00022136,2]
[316006502,1709323860303,-849.86,0.00022136,2]
[316006503,1709323860313,-1498.84,0.00022136,2]
[316006504,1709323860323,-621.83,0.00022136,2]
[316006505,1709323860332,-500.0,0.00022136,2]
[316006506,1709323860341,-11542.81,0.00022136,2]
[316006507,1709323860351,-500.0,0.00022136,2]
[316006508,1709323860362,-660.97,0.00022136,2]
[316006509,1709323860371,-500.0,0.00022136,2]
[316006510,1709323860381,-525.42,0.00022136,2]
[316006511,1709323860390,-1220.78,0.00022136,2]
[316006512,1709323860400,-500.0,0.00022136,2]
[316006513,1709323860409,-5230.42,0.00022136,2]
[316006514,1709323860419,-928.56,0.00022136,2]
[316006515,1709323860429,-1567.33,0.00022136,2]
[316006516,1709323860439,-500.0,0.00022136,2]
[316006517,1709323860448,-6803.33,0.00022136,2]
[316006518,1709323860457,-1315.36,0.00022136,2]
[316006519,1709323860467,-500.0,0.00022136,2]
[316006520,1709323860477,-1098.94,0.00022136,2]
[316006521,1709323860486,-500.0,0.00022136,2]
[316006522,1709323860496,-752.81,0.00022136,2]
[316006523,1709323860505,-500.0,0.00022136,2]
[316006524,1709323860515,-500.0,0.00022136,2]
[316006525,1709323860524,-1244.11,0.00022136,2]
[316006526,1709323860533,-1915.79,0.00022136,2]
[316006527,1709323860543,-1905.39,0.00022136,2]
[316006528,1709323860552,-500.0,0.00022136,2]
[316006529,1709323860561,-844.94,0.00022136,2]
[316006530,1709323860570,-1197.72,0.00022136,2]
[316006531,1709323860580,-500.0,0.00022136,2]
[316006532,1709323860590,-500.0,0.00022136,2]
[316006533,1709323860602,-500.0,0.00022136,2]
[316006534,1709323860614,-500.0,0.00022136,2]
[316006535,1709323860623,-9598.76,0.00022136,2]
[316006536,1709323860633,-500.0,0.00022136,2]
[316006537,1709323860643,-582.15823479,0.00022136,2]
[316006538,1709323860652,-5566.13,0.00022136,2]
[316006539,1709323860662,-3238.46,0.00022136,2]
[316006540,1709323860671,-151.0,0.00022136,7]
[316006541,1709323860680,-500.0,0.00022136,2]
[316006542,1709323860689,-500.0,0.00022136,2]
[316006543,1709323860699,-151.0,0.00022136,7]
[316006544,1709323860709,-625.01,0.00022136,2]
[316006545,1709323860718,-2107.74,0.00022136,2]
[316006546,1709323860728,-500.0,0.00022136,2]
[316006547,1709323860737,-752.31,0.00022136,2]
[316006548,1709323860747,-3096.5,0.00022136,2]
[316006549,1709323860757,-500.0,0.00022136,2]
[316006550,1709323860766,-500.0,0.00022136,2]
[316006551,1709323860776,-500.0,0.00022136,2]
[316006552,1709323860785,-1267.67,0.00022136,2]
[316006553,1709323860795,-1108.88,0.00022136,2]
[316006554,1709323860805,-1239.93,0.00022136,2]
[316006555,1709323860815,-500.0,0.00022136,2]
[316006556,1709323860824,-500.0,0.00022136,2]
[316006557,1709323860833,-2367.72,0.00022136,2]
[316006558,1709323860843,-188.31570955,0.00022136,2]
[316006559,1709323861455,-311.68429045,0.00022136,2]
[316006560,1709323861465,-500.0,0.00022136,2]
[316006561,1709323861476,-1572.31,0.00022136,2]
[316006562,1709323861486,-500.0,0.00022136,2]
[316006563,1709323861496,-500.0,0.00022136,2]
[316006564,1709323861505,-851.32,0.00022136,2]
[316006565,1709323861514,-7933.58,0.00022136,2]
[316006566,1709323861524,-500.0,0.00022136,2]
[316006567,1709323861533,-500.0,0.00022136,2]
[316006568,1709323861543,-1340.26,0.00022136,2]
[316006569,1709323861553,-809.21,0.00022136,2]
[316006570,1709323861563,-815.73,0.00022136,2]
[316006571,1709323861572,-1131.25,0.00022136,2]
[316006572,1709323861581,-6260.63,0.00022136,2]
[316006573,1709323861590,-500.0,0.00022136,2]
[316006574,1709323861602,-500.0,0.00022136,2]
[316006575,1709323861613,-500.0,0.00022136,2]
[316006576,1709323861622,-743.1,0.00022136,2]
[316006577,1709323861637,-4121.89,0.00022136,2]
[316006578,1709323861646,-523.03414413,0.00022136,2]
[316006579,1709323861826,-2061.75,0.00022136,2]
[316006580,1709323861836,-708.56,0.00022136,2]
[316006581,1709323861845,-2921.2,0.00022136,2]
[316006582,1709323861855,-4170.86,0.00022136,2]
[316006583,1709323861866,-595.18,0.00022136,2]
[316006584,1709323861876,-11562.7,0.00022136,2]
[316006585,1709323861885,-500.0,0.00022136,2]
[316006586,1709323861895,-1585.35,0.00022136,2]
[316006587,1709323861904,-500.0,0.00022136,2]
[316006588,1709323861913,-2561.19,0.00022136,2]
[316006589,1709323861923,-500.0,0.00022136,2]
[316006590,1709323861932,-500.0,0.00022136,2]
[316006591,1709323861942,-500.0,0.00022136,2]
[316006592,1709323861952,-500.0,0.00022136,2]
[316006593,1709323861962,-500.0,0.00022136,2]
[316006594,1709323861972,-500.0,0.00022136,2]
[316006595,1709323861981,-1970.12,0.00022136,2]
[316006596,1709323861991,-500.0,0.00022136,2]
[316006597,1709323862001,-5848.44,0.00022136,2]
[316006598,1709323862010,-1240.56,0.00022136,2]
[316006599,1709323862019,-2771.68,0.00022136,2]
[316006600,1709323862028,-500.0,0.00022136,2]
[316006601,1709323862038,-500.0,0.00022136,2]
[316006602,1709323862049,-785.79,0.00022136,2]
[316006603,1709323862058,-500.0,0.00022136,2]
[316006604,1709323862067,-512.01,0.00022136,2]
[316006605,1709323862077,-3049.61,0.00022136,2]
[316006606,1709323862086,-151.0,0.00022136,7]
[316006607,1709323862096,-150.0,0.00022169,2]
[316006608,1709323862105,-150.0,0.00022169,2]
[316006609,1709323862117,-420.0,0.00022169,2]
[316006610,1709323862126,-18005.29880457,0.00022177,2]
[316006611,1709323862136,-151.0,0.00022177,7]
[316006612,1709323862146,-151.0,0.00022177,7]
[316006613,1709323862155,-42989.66925374,0.00022179,2]
[316006614,1709323862164,-151.33,0.00022188,2]
[316006615,1709323862174,-6800.06367245,0.00022189,2]
[316006616,1709323862184,-200000.0,0.0002219,2]
[316006617,1709323862193,-155.0,0.00022191,2]
[316006618,1709323862203,-943.13,0.00022192,2]
[316006619,1709323862213,-943.13,0.00022192,2]
[316006620,1709323862223,-943.13,0.00022192,2]
[316006621,1709323862233,-209.80548111,0.00022192,2]
[316006622,1709323862242,-50000.0,0.00022193,2]
[316006623,1709323862252,-146203.35555462,0.00022193,2]
[316006624,1709323862262,-50000.0,0.00022193,2]
[316006625,1709323862272,-200000.0,0.00022193,2]
[316006626,1709323862283,-62939.44928719,0.00022193,2]
[316006627,1709323862293,-29005.01085861,0.00022193,2]
[316006628,1709323862304,-5900.90044774,0.00022193,2]
[316006629,1709323862314,-151.0,0.00022193,7]
[316006630,1709323862324,-151.0,0.00022193,7]
[316006631,1709323862334,-236.057812,0.00022193,7]
[316006632,1709323862343,-151.0,0.00022193,7]
[316006633,1709323862353,-151.0,0.00022193,7]
[316006634,1709323862364,-238.866837,0.00022193,2]
[316006635,1709323862374,-238.866837,0.00022193,2]
[316006636,1709323862384,-238.866837,0.00022193,2]
[316006637,1709323862394,-238.866837,0.00022193,2]
[316006638,1709323862404,-151.0,0.00022193,7]
[316006639,1709323862414,-151.0,0.00022193,7]
[316006640,1709323862423,-195.28213,0.00022193,7]
[316006641,1709323862444,-195.28213,0.00022193,7]
[316006642,1709323862455,-151.0,0.00022193,7]
[316006643,1709323862464,-151.0,0.00022193,7]
[316006644,1709323862474,-151.0,0.00022193,7]
[316006645,1709323862483,-151.0,0.00022193,7]
[316006646,1709323862493,-151.0,0.00022193,7]
[316006647,1709323862503,-150.0,0.00022194,2]
[316006648,1709323862513,-3266.94795517,0.000222,2]
[316006649,1709323862523,-1000.0,0.000222,2]
[316006650,1709323862534,-156.57,0.00022224,2]
[316006651,1709323862545,-150.0,0.00022236,2]
[316006652,1709323862555,-943.13,0.00022245,2]
[316006653,1709323862565,-943.13,0.00022245,2]
[316006654,1709323862575,-943.13,0.00022245,2]
[316006655,1709323862585,-943.13,0.00022245,2]
[316006656,1709323862596,-943.13,0.00022245,2]
[316006657,1709323862609,-943.17,0.00022245,2]
[316006658,1709323862618,-209.80548111,0.00022245,2]
[316006659,1709323862628,-500.0,0.00022246,2]
[316006660,1709323862638,-500.0,0.00022246,2]
[316006661,1709323862648,-500.0,0.00022246,2]
[316006662,1709323862658,-500.0,0.00022246,2]
[316006663,1709323862667,-500.0,0.00022246,2]
[316006664,1709323862680,-500.0,0.00022246,2]
[316006665,1709323862691,-500.0,0.00022246,2]
[316006666,1709323862701,-500.0,0.00022246,2]
[316006667,1709323862711,-369.88989754,0.00022246,2]
[316006668,1709323862721,-500.0,0.00022246,2]
[316006669,1709323862730,-507.89281625,0.00022246,2]
[316006670,1709323862740,-500.0,0.00022246,2]
[316006671,1709323862750,-500.0,0.00022246,2]
[316006672,1709323862760,-369.66,0.00022246,2]
[316006673,1709323862771,-500.0,0.00022246,2]
[316006674,1709323862781,-500.0,0.00022246,2]
[316006675,1709323862791,-570.48,0.00022246,2]
[316006676,1709323862802,-594.76,0.00022246,2]
[316006677,1709323862812,-507.82490619,0.00022246,2]
[316006678,1709323862823,-500.0,0.00022246,2]
[316006679,1709323862833,-511.62324658,0.00022246,2]
[316006680,1709323862844,-500.0,0.00022246,2]
[316006681,1709323862854,-500.0,0.00022246,2]
[316006682,1709323862864,-500.0,0.00022246,2]
[316006683,1709323862879,-184.53786842,0.00022246,2]
[316006684,1709323862889,-534.11,0.00022246,2]
[316006685,1709323862900,-500.0,0.00022246,2]
[316006686,1709323862910,-500.0,0.00022246,2]
[316006687,1709323862920,-549.38,0.00022246,2]
[316006688,1709323862930,-500.0,0.00022246,2]
[316006689,1709323862940,-500.0,0.00022246,2]
[316006690,1709323862950,-546.12,0.00022246,2]
[316006691,1709323862960,-575.60104695,0.00022246,2]
[316006692,1709323862970,-500.0,0.00022246,2]
[316006693,1709323862980,-500.0,0.00022246,2]
[316006694,1709323862990,-500.0,0.00022246,2]
[316006695,1709323863000,-500.0,0.00022246,2]
[316006696,1709323863011,-500.0,0.00022246,2]
[316006697,1709323863020,-500.0,0.00022246,2]
[316006698,1709323863030,-500.0,0.00022246,2]
[316006699,1709323863040,-500.0,0.00022246,2]
[316006700,1709323863050,-162.16705489,0.00022246,2]
[316006701,1709323863062,-500.0,0.00022246,2]
[316006702,1709323863072,-500.0,0.00022246,2]
[316006703,1709323863081,-500.0,0.00022246,2]
[316006704,1709323863091,-500.0,0.00022246,2]
[316006705,1709323863101,-500.0,0.00022246,2]
[316006706,1709323863111,-500.0,0.00022246,2]
[316006707,1709323863121,-533.72,0.00022246,2]
[316006708,1709323863130,-500.0,0.00022246,2]
[316006709,1709323863141,-500.0,0.00022246,2]
[316006710,1709323863151,-500.0,0.00022246,2]
[316006711,1709323863163,-500.0,0.00022246,2]
[316006712,1709323863173,-500.0,0.00022246,2]
[316006713,1709323863183,-751.59,0.00022246,2]
[316006714,1709323863193,-500.0,0.00022246,2]
[316006715,1709323863202,-500.0,0.00022246,2]
[316006716,1709323863212,-500.0,0.00022246,2]
[316006717,1709323863221,-731.0,0.00022246,2]
[316006718,1709323863231,-899.85,0.00022246,2]
[316006719,1709323863240,-500.0,0.00022246,2]
[316006720,1709323863250,-666.88,0.00022246,2]
[316006721,1709323863259,-500.0,0.00022246,2]
[316006722,1709323863270,-500.0,0.00022246,2]
[316006723,1709323863279,-500.0,0.00022246,2]
[316006724,1709323863289,-500.0,0.00022246,2]
[316006725,1709323863299,-565.86,0.00022246,2]
[316006726,1709323863312,-530.26604978,0.00022246,2]
[316006727,1709323863322,-670.76,0.00022246,2]
[316006728,1709323863332,-500.0,0.00022246,2]
[316006729,1709323863342,-500.0,0.00022246,2]
[316006730,1709323863351,-500.0,0.00022246,2]
[316006731,1709323863361,-500.0,0.00022246,2]
[316006732,1709323863371,-500.0,0.00022246,2]
[316006733,1709323863380,-500.0,0.00022246,2]
[316006734,1709323863390,-1145.41,0.00022246,2]
[316006735,1709323863401,-500.0,0.00022246,2]
[316006736,1709323863411,-305.86,0.00022246,2]
[316006737,1709323863421,-443.25,0.00022246,2]
[316006738,1709323863431,-500.0,0.00022246,2]
[316006739,1709323863442,-500.0,0.00022246,2]
[316006740,1709323863453,-500.0,0.00022246,2]
[316006741,1709323863463,-500.0,0.00022246,2]
[316006742,1709323863473,-500.0,0.00022246,2]
[316006743,1709323863482,-500.0,0.00022246,2]
[316006744,1709323863492,-500.0,0.00022246,2]
[316006745,1709323863502,-500.0,0.00022246,2]
[316006746,1709323863512,-500.0,0.00022246,2]
[316006747,1709323863522,-500.0,0.00022246,2]
[316006748,1709323863531,-758.46,0.00022246,2]
[316006749,1709323863541,-500.0,0.00022246,2]
[316006750,1709323863551,-500.0,0.00022246,2]
[316006751,1709323863561,-1390.35,0.00022246,2]
[316006752,1709323863570,-500.0,0.00022246,2]
[316006753,1709323863583,-500.0,0.00022246,2]
[316006754,1709323863593,-500.0,0.00022246,2]
[316006755,1709323863602,-500.0,0.00022246,2]
[316006756,1709323863613,-1002.89,0.00022246,2]
[316006757,1709323863623,-500.0,0.00022246,2]
[316006758,1709323863634,-500.0,0.00022246,2]
[316006759,1709323863645,-500.0,0.00022246,2]
[316006760,1709323863654,-500.0,0.00022246,2]
[316006761,1709323863664,-500.0,0.00022246,2]
[316006762,1709323863675,-500.0,0.00022246,2]
[316006763,1709323863685,-196.45405603,0.00022246,2]
[316006764,1709323863695,-513.19,0.00022246,2]
[316006765,1709323863705,-500.0,0.00022246,2]
[316006766,1709323863716,-500.0,0.00022246,2]
[316006767,1709323863728,-504.43621075,0.00022246,2]
[316006768,1709323863738,-500.0,0.00022246,2]
[316006769,1709323863748,-500.0,0.00022246,2]
[316006770,1709323863758,-745.75,0.00022246,2]
[316006771,1709323863768,-500.0,0.00022246,2]
[316006772,1709323863778,-500.0,0.00022246,2]
[316006773,1709323863788,-500.0,0.00022246,2]
[316006774,1709323863797,-500.0,0.00022246,2]
[316006775,1709323863806,-500.0,0.00022246,2]
[316006776,1709323863816,-500.0,0.00022246,2]
[316006777,1709323863826,-571.6,0.00022246,2]
[316006778,1709323863835,-500.0,0.00022246,2]
[316006779,1709323863845,-500.0,0.00022246,2]
[316006780,1709323863855,-500.0,0.00022246,2]
[316006781,1709323863866,-500.0,0.00022246,2]
[316006782,1709323863876,-500.0,0.00022246,2]
[316006783,1709323863886,-500.0,0.00022246,2]
[316006784,1709323863895,-500.0,0.00022246,2]
[316006785,1709323863905,-500.0,0.00022246,2]
[316006786,1709323863915,-500.0,0.00022246,2]
[316006787,1709323863925,-595.37,0.00022246,2]
[316006788,1709323863935,-500.0,0.00022246,2]
[316006789,1709323863945,-523.55,0.00022246,2]
[316006790,1709323863955,-276.75481643,0.00022246,2]
[316006791,1709323863965,-500.0,0.00022246,2]
[316006792,1709323863975,-500.0,0.00022246,2]
[316006793,1709323863985,-500.0,0.00022246,2]
[316006794,1709323863995,-500.0,0.00022246,2]
[316006795,1709323864005,-500.0,0.00022246,2]
[316006796,1709323864015,-500.0,0.00022246,2]
[316006797,1709323864026,-500.0,0.00022246,2]
[316006798,1709323864035,-500.0,0.00022246,2]
[316006799,1709323864047,-500.0,0.00022246,2]
[316006800,1709323864057,-500.0,0.00022246,2]
[316006801,1709323864068,-500.0,0.00022246,2]
[316006802,1709323864077,-203.46165832,0.00022246,2]
[316006803,1709323864086,-854.6,0.00022246,2]
[316006804,1709323864097,-500.0,0.00022246,2]
[316006805,1709323864108,-500.0,0.00022246,2]
[316006806,1709323864120,-500.0,0.00022246,2]
[316006807,1709323864130,-500.0,0.00022246,2]
[316006808,1709323864140,-500.0,0.00022246,2]
[316006809,1709323864149,-500.0,0.00022246,2]
[316006810,1709323864159,-541.66,0.00022246,2]
[316006811,1709323864168,-500.0,0.00022246,2]
[316006812,1709323864178,-500.0,0.00022246,2]
[316006813,1709323864190,-500.0,0.00022246,2]
[316006814,1709323864200,-500.0,0.00022246,2]
[316006815,1709323864211,-500.0,0.00022246,2]
[316006816,1709323864222,-200.67217129,0.00022246,2]
[316006817,1709323864234,-500.0,0.00022246,2]
[316006818,1709323864243,-500.0,0.00022246,2]
[316006819,1709323864253,-841.48,0.00022246,2]
[316006820,1709323864263,-500.0,0.00022246,2]
[316006821,1709323864273,-631.14,0.00022246,2]
[316006822,1709323864283,-500.0,0.00022246,2]
[316006823,1709323864521,-500.0,0.00022246,2]
[316006824,1709323864533,-990.23,0.00022246,2]
[316006825,1709323864543,-500.0,0.00022246,2]
[316006826,1709323864552,-500.0,0.00022246,2]
[316006827,1709323864562,-500.0,0.00022246,2]
[316006828,1709323864571,-500.0,0.00022246,2]
[316006829,1709323864580,-500.0,0.00022246,2]
[316006830,1709323864589,-500.0,0.00022246,2]
[316006831,1709323864600,-500.0,0.00022246,2]
[316006832,1709323864609,-500.0,0.00022246,2]
[316006833,1709323864618,-500.0,0.00022246,2]
[316006834,1709323864630,-500.0,0.00022246,2]
[316006835,1709323864642,-841.55,0.00022246,2]
[316006836,1709323864652,-500.0,0.00022246,2]
[316006837,1709323864661,-617.13,0.00022246,2]
[316006838,1709323864671,-500.0,0.00022246,2]
[316006839,1709323864680,-500.0,0.00022246,2]
[316006840,1709323864690,-500.0,0.00022246,2]
[316006841,1709323864699,-500.0,0.00022246,2]
[316006842,1709323864709,-500.0,0.00022246,2]
[316006843,1709323864720,-629.26,0.00022246,2]
[316006844,1709323864729,-500.0,0.00022246,2]
[316006845,1709323864740,-500.0,0.00022246,2]
[316006846,1709323864750,-500.0,0.00022246,2]
[316006847,1709323864760,-500.0,0.00022246,2]
[316006848,1709323864770,-500.0,0.00022246,2]
[316006849,1709323864780,-219.4,0.00022246,2]
[316006850,1709323864789,-500.0,0.00022246,2]
[316006851,1709323864799,-500.0,0.00022246,2]
[316006852,1709323864809,-500.0,0.00022246,2]
[316006853,1709323864819,-202.50054886,0.00022246,2]
[316006854,1709323864828,-500.0,0.00022246,2]
[316006855,1709323864837,-500.0,0.00022246,2]
[316006856,1709323864846,-500.0,0.00022246,2]
[316006857,1709323864859,-500.0,0.00022246,2]
[316006858,1709323864870,-500.0,0.00022246,2]
[316006859,1709323864880,-500.0,0.00022246,2]
[316006860,1709323864890,-500.0,0.00022246,2]
[316006861,1709323864900,-500.0,0.00022246,2]
[316006862,1709323864909,-500.0,0.00022246,2]
[316006863,1709323864919,-500.0,0.00022246,2]
[316006864,1709323864929,-500.0,0.00022246,2]
[316006865,1709323864938,-500.0,0.00022246,2]
[316006866,1709323864947,-500.0,0.00022246,2]
[316006867,1709323864958,-500.0,0.00022246,2]
[316006868,1709323864967,-431.71035334,0.00022246,2]
[316006869,1709323864977,-1295.96,0.00022246,2]
[316006870,1709323864987,-500.0,0.00022246,2]
[316006871,1709323864998,-500.0,0.00022246,2]
[316006872,1709323865007,-500.0,0.00022246,2]
[316006873,1709323865017,-500.0,0.00022246,2]
[316006874,1709323865027,-500.0,0.00022246,2]
[316006875,1709323865038,-500.0,0.00022246,2]
[316006876,1709323865048,-384.08,0.00022246,2]
[316006877,1709323865058,-500.0,0.00022246,2]
[316006878,1709323865068,-500.0,0.00022246,2]
[316006879,1709323865079,-500.0,0.00022246,2]
[316006880,1709323865089,-500.0,0.00022246,2]
[316006881,1709323865099,-500.0,0.00022246,2]
[316006882,1709323865109,-500.0,0.00022246,2]
[316006883,1709323865120,-500.0,0.00022246,2]
[316006884,1709323865130,-500.0,0.00022246,2]
[316006885,1709323865140,-500.0,0.00022246,2]
[316006886,1709323865149,-500.0,0.00022246,2]
[316006887,1709323865159,-500.0,0.00022246,2]
[316006888,1709323865169,-500.0,0.00022246,2]
[316006889,1709323865179,-500.0,0.00022246,2]
[316006890,1709323865189,-500.0,0.00022246,2]
[316006891,1709323865198,-500.0,0.00022246,2]
[316006892,1709323865208,-500.0,0.00022246,2]
[316006893,1709323865217,-500.0,0.00022246,2]
[316006894,1709323865227,-500.0,0.00022246,2]
[316006895,1709323865237,-500.0,0.00022246,2]
[316006896,1709323865247,-500.0,0.00022246,2]